[Event "7th Porticcio Open 2022"]
[Site "Porticcio"]
[Date "2022.07.04"]
[Round "4.1"]
[White "Maurizzi, Marc Andria"]
[Black "Suarez Uriel, Adrian"]
[Result "1-0"]
[ECO "A45"]
[WhiteElo "2506"]
[BlackElo "2386"]
[Annotator "TA"]
[PlyCount "92"]
[EventDate "2022.07.02"]
[EventType "swiss"]
[EventCountry "FRA"]
[SourceTitle "playchess.com"]
[Source "ChessBase"]
[SourceQuality "1"]
[TimeControl "5400+30"]

{[%evp 9,92,14,24,22,17,20,18,16,18,17,22,28,21,10,37,37,60,0,0,0,0,0,0,0,40,34,31,25,45,37,27,25,82,77,97,100,93,68,68,70,60,0,0,0,0,0,0,0,0,0,0,25,27,-34,-34,-22,0,-66,-41,-132,-131,-86,0,0,0,0,384,394,708,612,573,574,568,574,548,541,478,449,1043,1041,29977,1007,923,895,895]} 1. d4 {[%emt 0:00:04]} Nf6 {[%emt 0:00:04]} 2. Bg5 {[%emt 0:00:15]} c5 {[%emt 0:00:06]} 3. d5 {[%emt 0:00:25]} d6 {[%emt 0:00:05]} 4. Nc3 {[%emt 0:00:49]} h6 {[%emt 0:00:05]} 5. Bxf6 {[%emt 0:04:32]} exf6 {[%emt 0:00:12]} 6. e4 {[%emt 0:00:54] A45: Trompowsky Attack.} g6 {[%emt 0:01:44]} 7. Nf3 {[%emt 0:08:10]} Bg7 {[%emt 0:00:11]} 8. Bd3 {[%emt 0:00:37] The position is equal.} O-O {[%emt 0:04:51]} 9. O-O {[%emt 0:00:38]} Nd7 {[%emt 0:13:49] [#]} 10. a4 $146 {[%emt 0:01:31]} ({Predecessor:} 10. Nd2 a6 11. a4 Ne5 12. Be2 f5 13. exf5 gxf5 14. a5 b5 15. axb6 Qxb6 16. Ra2 {1-0 (46) Gallagher,J (2516)-Knott,S (2373) Scarborough 2001}) 10... a6 {[%emt 0:08:48]} 11. a5 {[%emt 0:07:39]} Qc7 {[%emt 0:00:06]} 12. Nd2 {[%emt 0:02:36]} Re8 {[%emt 0:10:33]} 13. Nc4 {[%emt 0:05:42]} (13. Kh1 $14) 13... b5 $11 {[%emt 0:00:07]} 14. axb6 $1 {[%emt 0:00:08]} Nxb6 {[%emt 0:00:01]} 15. Ne3 {[%emt 0:07:41]} c4 $1 {[%emt 0:02:54]} 16. Be2 {[%emt 0:00:08]} Bd7 {[%emt 0:00:05]} 17. Bg4 {[%emt 0:03:13]} Bb5 {[%emt 0:00:42]} 18. h4 {[%emt 0:05:53]} ({Don't play} 18. Nxb5 axb5 19. Rxa8 Rxa8 $15) 18... h5 {[%emt 0:04:21]} 19. Bh3 {[%emt 0:07:08]} Bh6 {[%emt 0:02:07]} 20. Qf3 {[%emt 0:06:33]} Qc5 {[%emt 0:32:19]} (20... Nd7 $11) 21. Qxf6 $16 {[%emt 0:09:53][%cal Oh3e6] Hoping for Be6!} Bg7 {[%emt 0:00:04]} 22. Qf4 {[%emt 0:01:48] White is more active.} Be5 {[%emt 0:00:15]} 23. Qg5 {[%emt 0:00:15][%cal Oh3e6]} Bd7 {[%emt 0:02:51]} ({Less strong is} 23... Bxc3 24. bxc3 Qc7 25. f3 $16) 24. Bf5 {[%emt 0:08:57][%cal Of5g6]} Kf8 {[%emt 0:02:28]} 25. Bxg6 {[%emt 0:02:19]} fxg6 {[%emt 0:00:01]} 26. Qxg6 {[%emt 0:00:08]} Ke7 {[%emt 0:00:08]} 27. Qg5+ {[%emt 0:00:26]} Bf6 $1 {[%emt 0:00:21] This bishop pair is nice.} 28. Nf5+ {[%emt 0:00:03]} Bxf5 {[%emt 0:00:03]} 29. Qxf5 {[%emt 0:00:02] Chess con chili.} Nd7 {[%emt 0:01:28]} 30. Ne2 {[%emt 0:03:17]} Be5 {[%emt 0:05:18]} 31. Nf4 {[%emt 0:00:52]} (31. c3 $11) 31... Bxf4 $15 {[%emt 0:00:02]} 32. Qxf4 {[%emt 0:00:02] Strongly threatening Qg5+.} Kd8 {[%emt 0:00:04]} 33. b4 {[%emt 0:00:40]} ({Better is} 33. b3 $1 $11) 33... Qxb4 {[%emt 0:01:45]} 34. Rab1 {[%emt 0:03:03]} (34. Rfb1 $15 Qc5 35. Rb7) 34... Qc5 $17 {[%emt 0:00:01]} 35. Rb7 {[%emt 0:00:42] aiming for Qf5.} Rf8 {[%emt 0:02:30] Prevents Qf5.} ({Black should try} 35... Ra7 $17 36. Qg5+ (36. Rxa7 Qxa7 37. Qxd6 Rxe4 $17) 36... Kc8 37. Rxa7 Qxa7) 36. Qg5+ {[%emt 0:04:10]} Kc8 {[%emt 0:00:00]} 37. Qe7 $40 {[%emt 0:01:01][%csl Gb7][%cal Re7d7][%mdl 128] White attacks.} Rd8 {[%emt 0:00:51][%mdl 8192]} (37... Kxb7 $11 38. Qxd7+ Kb6 39. Rb1+ Ka5) 38. Rfb1 $18 {[%emt 0:00:16] Threatens to win with Qe6.} a5 $2 {[%emt 0:03:19]} (38... Ra7) 39. R1b5 {[%emt 0:00:50]} Qa3 {[%emt 0:00:01]} 40. Kh2 {[%emt 0:03:10][%cal Ob7d7] White threatens Rxd7! and mate.} Qc3 {[%emt 0:03:08] [#] ...Qe5+ is the strong threat.} 41. Rxd7 $1 {[%emt 0:00:14][%csl Ge7][%cal Rd7d8][%mdl 512]} Qe5+ {[%emt 0:00:04]} 42. Qxe5 {[%emt 0:00:07]} dxe5 {[%emt 0:00:02]} 43. Re7 {[%emt 0:01:16] And now Rbb7 would win.} a4 {[%emt 0:00:06]} (43... Rd7 $142 44. Rc5+ Kd8 45. Rxe5 Re7) 44. Rbb7 {[%emt 0:01:02][%csl Gb7][%cal Re7c7]} Rd6 {[%emt 0:00:01]} 45. Ra7 {[%emt 0:00:13]} (45. Rec7+ $142 Kd8 46. Rh7 Kc8 47. Rbc7+ Kd8 48. Rcg7 Kc8 49. Rh8+ Rd8 50. Rxd8+ Kxd8 51. Rg8+ Ke7 52. Rxa8) 45... Kb8 {[%emt 0:00:20]} 46. Reb7+ {[%emt 0:00:02]} Kc8 {[%emt 0:00:01] Weighted Error Value: White=0.17 (very precise) /Black=0.37} 1-0

[Event "7th Porticcio Open 2022"]
[Site "Porticcio"]
[Date "2022.07.04"]
[Round "4.2"]
[White "Karttunen, Mika"]
[Black "Valles Moreno, Ivan"]
[Result "1-0"]
[ECO "A80"]
[WhiteElo "2484"]
[BlackElo "2384"]
[Annotator "TA"]
[PlyCount "113"]
[EventDate "2022.07.02"]
[EventType "swiss"]
[EventCountry "FRA"]
[SourceTitle "playchess.com"]
[Source "ChessBase"]
[SourceQuality "1"]
[TimeControl "5400+30"]

{[%evp 12,113,19,11,14,17,18,16,49,32,44,25,42,33,41,57,361,368,458,457,379,245,425,434,417,303,326,331,350,290,288,320,352,332,342,354,336,333,396,378,555,545,544,529,487,333,336,299,432,421,507,474,502,482,719,723,870,858,872,849,837,583,872,828,762,628,862,862,952,920,1152,1025,1126,808,1330,1327,1324,1252,2278,2068,2062,2138,2566,2536,2086,29972,29971,29972,29972,29972,29964,29957,29952,11408,29960,29960,29974,29976,29977,29967,29982,29983,29982,29983]} 1. d4 {[%emt 0:00:04]} f5 {[%emt 0:00:57]} 2. Nc3 {[%emt 0:00:31]} Nf6 {[%emt 0:00:09]} 3. Bg5 {[%emt 0:00:06]} d5 {[%emt 0:00:07]} 4. Bxf6 {[%emt 0:00:08]} exf6 {[%emt 0:00:06]} 5. e3 {[%emt 0:00:07]} Be6 {[%emt 0:00:14]} 6. Bd3 {[%emt 0:00:08]} Nc6 {[%emt 0:03:44]} 7. a3 {[%emt 0:00:14]} Qd7 {[%emt 0:00:14] A80: Dutch Defence: Unusual White second moves.} 8. Nge2 {[%emt 0:00:19][%cal Bg1e2,Be2c1,Bc1b3][%mdl 32]} O-O-O {[%emt 0:04:10]} 9. b4 {[%emt 0:03:06]} Ne7 {[%emt 0:09:34] The position is equal.} 10. Nc1 {[%emt 0:03:07] [#]} Kb8 $146 {[%emt 0:13:47]} ({Predecessor:} 10... g5 11. Nb3 Ng6 12. Nc5 Bxc5 13. bxc5 f4 14. Qe2 Bg4 15. c6 Qe6 16. cxb7+ Kb8 {0-1 (59) Archangelsky,M (2054)-Smirnov,A (2393) Deutschlandsberg 2017}) 11. Nb3 {[%emt 0:00:50]} b6 {[%emt 0:00:33]} 12. O-O {[%emt 0:11:42]} g5 {[%emt 0:03:52]} 13. a4 {[%emt 0:05:21][%cal Ba3a4,Ba4a5,Ba5b6][%mdl 32]} Ng6 $2 {[%emt 0:05:50][%mdl 8192] [#] Black cannot hold the game after this.} (13... Nc6 $1 $14) 14. a5 $1 $18 {[%emt 0:01:22] Black must now prevent axb6.} Qc6 {[%emt 0:11:02]} (14... Bxb4 $2 15. axb6 axb6 16. Nb5 $18) 15. Nb5 {[%emt 0:07:32]} a6 {[%emt 0:14:08]} 16. Nxc7 {[%emt 0:03:08]} Kxc7 {[%emt 0:01:07]} (16... b5 {might work better.}) 17. axb6+ {[%emt 0:00:22]} Kd7 {[%emt 0:00:10]} (17... Qxb6 $2 18. Rxa6 Qxa6 19. Bxa6) 18. Nc5+ {[%emt 0:06:48]} Bxc5 {[%emt 0:01:30]} 19. bxc5 {[%emt 0:00:23]} Ra8 {[%emt 0:05:08]} 20. Bxa6 {[%emt 0:01:05] Hoping for Qd3.} (20. Rxa6 Rxa6 21. Bxa6 Ke7 $18) 20... Ke7 {[%emt 0:00:24]} 21. Qd3 {[%emt 0:07:43]} Kf7 {[%emt 0:01:43]} 22. Bb5 {[%emt 0:13:34]} Qb7 {[%emt 0:00:08]} 23. Ra6 {[%emt 0:01:12]} Ne7 {[%emt 0:04:37]} 24. Rfa1 {[%emt 0:01:58][%cal Bf1a1,Ba1a6,Ba6a7,Ba7c7][%mdl 32] Threatens to win with Ra7.} Nc6 {[%emt 0:05:02] Against Ra7} 25. Qa3 {[%emt 0:08:41][%cal Ra6a8]} Rxa6 {[%emt 0:06:57]} (25... Rab8 {was called for.} 26. Bxc6 Qxc6) 26. Qxa6 {[%emt 0:02:52]} Qxa6 {[%emt 0:01:54]} 27. Rxa6 {[%emt 0:00:22]} Bd7 {[%emt 0:00:18]} 28. Bxc6 {[%emt 0:06:11]} Bxc6 {[%emt 0:00:04][%mdl 4096] Endgame KRB-KR} 29. Ra7+ {[%emt 0:00:05]} Kg6 {[%emt 0:00:39]} (29... Ke6 {keeps fighting.} 30. Rc7 Bb5) 30. Rc7 {[%emt 0:00:04]} Bb5 {[%emt 0:00:38]} 31. b7 {[%emt 0:02:32] aiming for Rc8.} Rb8 {[%emt 0:00:12]} 32. f4 {[%emt 0:01:45]} h5 {[%emt 0:01:08]} (32... h6 $142 33. Kf2 gxf4 34. exf4 Kh5) 33. h4 {[%emt 0:07:03]} gxh4 {[%emt 0:00:24]} 34. Kh2 {[%emt 0:00:05]} Ba4 {[%emt 0:03:23]} 35. c3 {[%emt 0:02:27]} Bb5 {[%emt 0:00:47]} 36. Kh3 {[%emt 0:00:37]} Ba4 {[%emt 0:00:10]} 37. Kxh4 {[%emt 0:00:15]} Bb5 {[%emt 0:00:05]} 38. Kh3 {[%emt 0:00:33]} Ba4 {[%emt 0:00:07]} 39. g3 {[%emt 0:00:21]} Bb5 {[%emt 0:00:05]} 40. Kg2 {[%emt 0:00:15]} Ba4 {[%emt 0:00:12]} 41. Kf2 {[%emt 0:00:06]} Bb5 {[%emt 0:00:15]} 42. Kf3 {[%emt 0:00:28]} Ba4 {[%emt 0:00:24]} 43. Ke2 {[%emt 0:00:15]} Bb5+ {[%emt 0:00:07]} 44. Kd2 {[%emt 0:00:04]} Ba4 {[%emt 0:04:43]} 45. c4 dxc4 {[%emt 0:00:51]} 46. d5 {[%emt 0:01:21]} Bb3 {[%emt 0:00:44]} 47. Kc3 {[%emt 0:02:27] Threatening mate with c6.} Re8 {[%emt 0:00:35]} 48. Rc8 {[%emt 0:01:06]} (48. c6 $18 Ba4 49. Rc8 Rxe3+ 50. Kxc4) 48... Rxe3+ {[%emt 0:00:06]} 49. Kd2 {[%emt 0:00:16]} Rd3+ {[%emt 0:00:46]} 50. Ke2 {[%emt 0:00:11]} Bd1+ {[%emt 0:00:39]} 51. Ke1 {[%emt 0:00:06]} Bg4 {[%emt 0:00:18]} 52. Rg8+ {[%emt 0:01:46]} Kf7 {[%emt 0:00:05] [#]} 53. Rxg4 $1 {[%emt 0:00:21][%mdl 512] White mates.} Rb3 {[%emt 0:00:07]} (53... fxg4 54. b8=Q) 54. c6 {[%emt 0:01:08]} c3 {[%emt 0:01:37]} 55. Kd1 {[%emt 0:00:12]} hxg4 {[%emt 0:00:48]} 56. c7 {[%emt 0:00:16]} Rxb7 {[%emt 0:00:33]} 57. c8=Q {[%emt 0:00:07] Weighted Error Value: White=0.17 (very precise) /Black=0.67} 1-0

[Event "7th Porticcio Open 2022"]
[Site "Porticcio"]
[Date "2022.07.04"]
[Round "4.3"]
[White "Navrotescu, Andreea"]
[Black "Venkatesh, M.R."]
[Result "0-1"]
[ECO "E11"]
[WhiteElo "2373"]
[BlackElo "2479"]
[Annotator "ChessBase"]
[PlyCount "110"]
[EventDate "2022.07.02"]
[EventType "swiss"]
[EventCountry "FRA"]
[SourceTitle "playchess.com"]
[Source "ChessBase"]
[SourceQuality "1"]
[TimeControl "5400+30"]

1. d4 {[%emt 0:00:02]} Nf6 {[%emt 0:00:15]} 2. c4 {[%emt 0:00:04]} e6 {[%emt 0:00:07]} 3. Nf3 {[%emt 0:00:03]} Bb4+ {[%emt 0:05:25]} 4. Bd2 {[%emt 0:00:07]} a5 {[%emt 0:00:45]} 5. a3 {[%emt 0:00:14]} Be7 {[%emt 0:01:49]} 6. Nc3 {[%emt 0:00:13]} d5 {[%emt 0:00:15]} 7. Bf4 {[%emt 0:00:19]} O-O {[%emt 0:01:01]} 8. e3 {[%emt 0:00:46]} b6 {[%emt 0:10:16]} 9. cxd5 {[%emt 0:02:35]} exd5 {[%emt 0:00:55]} 10. Bd3 {[%emt 0:03:54]} Bb7 {[%emt 0:02:59]} 11. Rc1 {[%emt 0:02:23]} Nbd7 {[%emt 0:26:47]} 12. Ne5 {[%emt 0:08:15]} c5 {[%emt 0:04:41]} 13. Nxd7 {[%emt 0:03:44]} Qxd7 {[%emt 0:06:03]} 14. Bb5 {[%emt 0:09:47]} Qe6 {[%emt 0:06:15]} 15. O-O {[%emt 0:03:18]} Rac8 {[%emt 0:02:23]} 16. Re1 {[%emt 0:04:10]} Rfd8 {[%emt 0:00:42]} 17. Bg3 {[%emt 0:02:07]} h6 {[%emt 0:00:58]} 18. f3 {[%emt 0:00:26]} Nh5 {[%emt 0:02:50]} 19. Bf2 {[%emt 0:00:27]} Bd6 {[%emt 0:01:43]} 20. e4 {[%emt 0:04:23]} dxe4 {[%emt 0:06:13]} 21. d5 {[%emt 0:01:59]} Qe5 {[%emt 0:06:46]} 22. g3 {[%emt 0:00:07]} f5 {[%emt 0:00:04]} 23. f4 {[%emt 0:05:00]} Nxf4 {[%emt 0:00:07]} 24. gxf4 {[%emt 0:00:05]} Qxf4 {[%emt 0:00:03]} 25. Qh5 {[%emt 0:00:09]} Qe5 {[%emt 0:02:15]} 26. Rcd1 {[%emt 0:01:43]} Rc7 {[%emt 0:01:11]} 27. Bg3 {[%emt 0:04:05]} Qf6 {[%emt 0:00:28]} 28. Bc4 {[%emt 0:01:28]} Kh7 {[%emt 0:02:58]} 29. Rf1 {[%emt 0:02:25]} Bxg3 {[%emt 0:02:00]} 30. Nxe4 {[%emt 0:00:41]} Qh4 {[%emt 0:00:41]} 31. Qxh4 {[%emt 0:18:45]} Bxh4 {[%emt 0:00:09]} 32. Rxf5 {[%emt 0:00:03]} Re7 {[%emt 0:01:01]} 33. Rf4 {[%emt 0:00:05]} Bg5 {[%emt 0:00:08]} 34. Nxg5+ {[%emt 0:01:20]} hxg5 {[%emt 0:00:02]} 35. Rf5 {[%emt 0:00:06]} Kh6 {[%emt 0:03:23]} 36. Rd3 {[%emt 0:03:04]} Re4 {[%emt 0:00:57]} 37. b3 {[%emt 0:00:35]} Kg6 {[%emt 0:01:28]} 38. Rdf3 {[%emt 0:01:35]} Rd4 {[%emt 0:00:32]} 39. Re5 {[%emt 0:00:38]} Bxd5 {[%emt 0:01:06]} 40. Bd3+ {[%emt 0:03:52]} Kh6 {[%emt 0:00:01]} 41. Rh3+ {[%emt 0:00:34]} Rh4 {[%emt 0:00:03]} 42. Rg3 {[%emt 0:00:06]} Bf7 {[%emt 0:00:46]} 43. Re7 {[%emt 0:01:51]} Bxb3 {[%emt 0:01:45]} 44. Rb7 {[%emt 0:00:37]} Rd6 {[%emt 0:00:22]} 45. Rb8 {[%emt 0:00:03]} g4 {[%emt 0:00:08]} 46. h3 {[%emt 0:03:05]} Kg5 {[%emt 0:00:44]} 47. Be2 {[%emt 0:01:11]} Bd1 48. Bf1 {[%emt 0:01:26]} Kf4 {[%emt 0:01:14]} 49. Rc3 Bf3 {[%emt 0:00:44]} 50. Kf2 {[%emt 0:01:06]} Rd2+ {[%emt 0:00:35]} 51. Ke1 {[%emt 0:00:21]} Rd1+ {[%emt 0:00:05]} 52. Kf2 g3+ {[%emt 0:01:30]} 53. Kg1 {[%emt 0:00:01]} Rh6 {[%emt 0:00:15]} 54. Rc4+ {[%emt 0:01:59]} Be4 {[%emt 0:00:02]} 55. Re8 {[%emt 0:00:42]} Re1 {[%emt 0:00:03]} 0-1

[Event "7th Porticcio Open 2022"]
[Site "Porticcio"]
[Date "2022.07.04"]
[Round "4.4"]
[White "Can, Isik"]
[Black "Martin Duque, Jesus"]
[Result "1-0"]
[ECO "B46"]
[WhiteElo "2445"]
[BlackElo "2378"]
[Annotator "TA"]
[PlyCount "51"]
[EventDate "2022.07.02"]
[EventType "swiss"]
[EventCountry "FRA"]
[SourceTitle "playchess.com"]
[Source "ChessBase"]
[SourceQuality "1"]
[TimeControl "5400+30"]

{[%evp 21,51,0,0,0,10,3,18,0,0,14,23,14,14,0,0,0,41,39,139,136,186,187,193,190,324,335,353,351,337,306,762,743]} 1. e4 {[%emt 0:00:04]} c5 {[%emt 0:00:01]} 2. Nf3 {[%emt 0:00:05]} e6 {[%emt 0:00:02]} 3. d4 {[%emt 0:00:06]} cxd4 {[%emt 0:00:01]} 4. Nxd4 {[%emt 0:00:05]} Nc6 {[%emt 0:00:02]} 5. Nc3 {[%emt 0:00:06]} a6 {[%emt 0:00:02]} 6. Nxc6 {[%emt 0:00:34]} bxc6 {[%emt 0:00:02]} 7. Bd3 {[%emt 0:00:06]} d5 {[%emt 0:00:05]} 8. O-O {[%emt 0:00:03]} Nf6 {[%emt 0:00:09][%cal Bg8f6,Bf6d7,Bd7c5,Bc5b3,Bb3c1][%mdl 32]} 9. Re1 {[%emt 0:00:29]} Be7 {[%emt 0:00:06]} 10. e5 {[%emt 0:01:27]} Nd7 {[%emt 0:00:34]} 11. Qg4 {[%emt 0:00:05]} Kf8 {[%emt 0:00:09] is currently scoring better than 11...g6.} 12. Na4 {[%emt 0:03:07] B46: Sicilian: Taimanov: 5 Nc3 a6.} h5 {[%emt 0:01:08]} 13. Qf4 {[%emt 0:18:57]} Kg8 {[%emt 0:00:16]} 14. c4 {[%emt 0:05:33] The position is equal.} Qa5 {[%emt 0:02:03][%csl LRa4,LRe1]} 15. Nc3 {[%emt 0:01:31]} Nc5 {[%emt 0:00:15] [#]} 16. Bf1 $146 {[%emt 0:16:41] cxd5 is the strong threat.} ({Predecessor:} 16. Bc2 Qb4 17. Re3 Qxc4 18. Qxc4 dxc4 19. Ne4 {½-½ (19) Odeeva,K (2188)-Wellen,L (2207) ICCF email 2017}) 16... Nb3 {[%emt 0:11:29]} 17. Rb1 {[%emt 0:00:34]} Nxc1 {[%emt 0:00:19]} 18. Rexc1 {[%emt 0:00:13]} g5 {[%emt 0:19:24]} 19. Qe3 {[%emt 0:16:30][%cal Ob2b4]} Rb8 {[%emt 0:03:22] [#]} ({Better is} 19... Qd8 $14) 20. cxd5 $1 $16 {[%emt 0:05:11]} exd5 {[%emt 0:01:46]} (20... cxd5 $16 {was called for.} 21. Qa7 Rb7 22. Qxa6 Qd8) 21. Qa7 $18 {[%emt 0:02:49][%csl LRb8,LRe7]} Qb4 {[%emt 0:00:38] [#]} 22. Nb5 $1 {[%emt 0:06:49]} Bf5 {[%emt 0:15:31]} (22... Rb7 $142 23. Qxa6 Kg7) 23. a3 {[%emt 0:02:34]} ({Don't take} 23. Qxb8+ Kg7 24. Qc7 Bxb1 $18) 23... Qf4 {[%emt 0:07:05]} 24. Qxb8+ {[%emt 0:00:58]} Kg7 {[%emt 0:00:02]} 25. Qa7 {[%emt 0:00:13]} ({Not} 25. Qc7 Bxb1 26. Qxc6 (26. Qxe7 Qxc1 27. Qf6+ Kg8 $11) (26. Rxb1 Bc5 $11) 26... Be4 $11) 25... Re8 {[%emt 0:02:56]} (25... Bxb1 26. Rxb1 Qxe5) 26. Nc7 {[%emt 0:00:33] Weighted Error Value: White=0.02 (flawless) /Black=0.33} 1-0

[Event "7th Porticcio Open 2022"]
[Site "Porticcio"]
[Date "2022.07.04"]
[Round "4.5"]
[White "Droin, Augustin"]
[Black "Maugenest, Ghislain"]
[Result "1-0"]
[ECO "C88"]
[WhiteElo "2391"]
[BlackElo "2203"]
[Annotator "TA"]
[PlyCount "95"]
[EventDate "2022.07.02"]
[EventType "swiss"]
[EventCountry "FRA"]
[SourceTitle "playchess.com"]
[Source "ChessBase"]
[SourceQuality "1"]
[TimeControl "5400+30"]

{[%evp 19,95,16,13,19,39,35,35,35,37,35,51,25,23,15,39,27,41,10,0,0,23,0,9,12,66,69,68,66,101,95,117,116,152,52,111,95,122,81,83,66,69,63,160,141,123,110,159,91,147,139,136,138,284,298,298,298,291,274,275,247,277,234,229,235,222,222,401,401,396,414,720,678,29977,29978,29978,29979,29979,29980]} 1. e4 {[%emt 0:04:35]} e5 {[%emt 0:00:24]} 2. Nf3 {[%emt 0:00:03]} Nc6 {[%emt 0:00:19]} 3. Bb5 {[%emt 0:00:05][%cal Bf1b5,Bb5a4,Ba4b3,Bb3d5][%mdl 32]} a6 {[%emt 0:00:24]} 4. Ba4 {[%emt 0:00:04]} Nf6 {[%emt 0:00:34]} 5. O-O {[%emt 0:00:05]} Be7 {[%emt 0:00:10]} 6. Re1 {[%emt 0:00:03]} b5 {[%emt 0:00:24]} 7. Bb3 {[%emt 0:00:04]} O-O {[%emt 0:00:30]} 8. a4 {[%emt 0:00:06]} Bb7 {[%emt 0:01:45]} 9. d3 {[%emt 0:00:25]} d6 {[%emt 0:01:58]} 10. Bd2 {[%emt 0:01:16]} Nd7 {[%emt 0:05:47]} 11. Nc3 {[%emt 0:09:18] C88: Closed Ruy Lopez: Anti-Marshall Systems.} Nc5 {[%emt 0:04:53]} 12. Bd5 {[%emt 0:02:56]} b4 {[%emt 0:03:51]} 13. Ne2 {[%emt 0:00:31] White is slightly better.} Rb8 {[%emt 0:02:53]} 14. Ng3 {[%emt 0:10:52] [#]} g6 $146 {[%emt 0:21:44]} ({Predecessor:} 14... Ne6 15. Be3 Re8 16. a5 Bf8 17. c3 bxc3 18. bxc3 Ne7 19. Bxb7 Rxb7 20. d4 Ng6 {1-0 (60) Pichot,A (2629)-Abdumalik,Z (2380) Dubai 2021}) 15. a5 {[%emt 0:00:55]} b3 {[%emt 0:05:01]} 16. Bc3 {[%emt 0:05:36] Prevents Nd4.} bxc2 {[%emt 0:08:01]} 17. Qxc2 {[%emt 0:00:10]} Qd7 {[%emt 0:04:45]} 18. Rac1 {[%emt 0:10:31]} Ne6 {[%emt 0:08:07]} 19. Qd2 {[%emt 0:02:24]} Bf6 {[%emt 0:05:06]} 20. Ne2 {[%emt 0:07:18]} Ncd4 {[%emt 0:12:15]} 21. Bxd4 {[%emt 0:02:17]} exd4 {[%emt 0:02:35]} (21... Nxd4 $11 22. Nexd4 exd4) 22. b4 $14 {[%emt 0:04:34]} Rfc8 {[%emt 0:06:42]} 23. Bxe6 {[%emt 0:06:16] White is more active.} fxe6 {[%emt 0:00:50]} 24. Nexd4 {[%emt 0:00:10]} c5 {[%emt 0:00:27]} 25. bxc5 {[%emt 0:00:42]} dxc5 {[%emt 0:00:02]} 26. Ne2 {[%emt 0:00:49]} (26. Nb3 $16) 26... Bg7 {[%emt 0:03:23]} (26... c4 $1 $14) 27. Qa2 {[%emt 0:01:40]} Rc6 {[%emt 0:00:26]} 28. d4 {[%emt 0:03:19]} cxd4 {[%emt 0:00:35] [#]} 29. Rxc6 $1 {[%emt 0:00:06]} Bxc6 {[%emt 0:00:21] This bishop pair is nice.} 30. Nexd4 {[%emt 0:00:06][%cal Oh2h4]} Re8 {[%emt 0:00:31]} (30... Rb4 $14 31. Nxc6 (31. Qxe6+ Qxe6 32. Nxe6 Bc3 $11) (31. Nxe6 Rb2 $14) 31... Qxc6) 31. Nxc6 $16 {[%emt 0:00:46]} Qxc6 {[%emt 0:00:02]} 32. h3 {[%emt 0:01:44]} Rc8 {[%emt 0:01:00]} (32... Bf6 $142 33. Qd2 Rc8) 33. Ng5 {[%emt 0:01:26]} (33. Rd1 $142) 33... Qc4 {[%emt 0:00:40]} (33... Bh6 $142) 34. Qxc4 {[%emt 0:00:11]} Rxc4 {[%emt 0:00:01]} 35. Nxe6 {[%emt 0:02:29][%mdl 4096] Endgame KRB-KRN} Bc3 {[%emt 0:00:20] [#] This costs Black the game.} (35... Be5 $16 36. f4 Bf6) 36. Rc1 $1 $18 {[%emt 0:03:59]} Rxe4 {[%emt 0:00:01]} 37. Rxc3 {[%emt 0:00:09] Hoping for Rc8+.} Rxe6 {[%emt 0:00:01] KR-KR} 38. Rc8+ {[%emt 0:00:05]} Kf7 {[%emt 0:01:23]} 39. Rc7+ {[%emt 0:00:02]} Kf6 {[%emt 0:00:05]} 40. f3 {[%emt 0:02:14]} (40. Rxh7 Re5 $16) 40... h5 {[%emt 0:00:30]} 41. h4 {[%emt 0:00:41]} Ke5 {[%emt 0:01:35]} 42. Kf2 {[%emt 0:00:16]} Kf6 $2 {[%emt 0:00:32]} (42... Kd4 {is a better defense.} 43. g4 Ke5) 43. Rb7 {[%emt 0:00:04] And now Rb6 would win.} Ke5 {[%emt 0:00:27]} 44. g4 {[%emt 0:00:58] Rb6 is the strong threat.} Kd4 {[%emt 0:00:32]} (44... Re8 $142 45. Rb6 hxg4 46. fxg4 (46. Rxg6 gxf3 47. Kxf3 Kf5 $18) 46... Rg8) 45. Rb6 {[%emt 0:00:11]} Kd5 {[%emt 0:00:33]} 46. Rxe6 {[%emt 0:00:37] White mates.} Kxe6 {[%emt 0:00:01]} 47. gxh5 {[%emt 0:00:06]} gxh5 {[%emt 0:00:02]} 48. f4 {[%emt 0:00:23] Weighted Error Value: White=0.09 (flawless) /Black=0.49} 1-0